fUSD/lending_fUSD_20240626
["ID","MTS","AMOUNT","RATE_DAILY","PERIOD"]
[330451852,1719421115833,-1565.23,0.00044109,120]
[330451853,1719421115867,-1229.92,0.00044109,120]
[330451854,1719421115899,-500.0,0.00044109,120]
[330451855,1719421115934,-500.0,0.00044109,120]
[330451856,1719421115967,-500.0,0.00044109,120]
[330451857,1719421115998,-500.0,0.00044109,120]
[330451858,1719421116044,-251.02,0.00044109,120]
[330451859,1719421116081,-756.44,0.00044109,120]
[330451860,1719421116115,-500.0,0.00044109,120]
[330451861,1719421116151,-500.0,0.00044109,120]
[330451862,1719421116186,-536.62,0.00044109,120]
[330451863,1719421116227,-714.77,0.00044109,120]
[330451864,1719421116266,-500.0,0.00044109,120]
[330451865,1719421116302,-3697.58,0.00044109,120]
[330451866,1719421116336,-867.94,0.00044109,120]
[330451867,1719421116372,-500.0,0.00044109,120]
[330451868,1719421116408,-1453.18,0.00044109,120]
[330451869,1719421116447,-3235.38,0.00044109,120]
[330451870,1719421116483,-2592.31,0.00044109,120]
[330451871,1719421116519,-500.0,0.00044109,120]
[330451872,1719421116555,-2048.92,0.00044109,120]
[330451873,1719421116591,-500.0,0.00044109,120]
[330451874,1719421116627,-708.69,0.00044109,120]
[330451875,1719421116664,-936.66,0.00044109,120]
[330451876,1719421116700,-500.0,0.00044109,120]
[330451877,1719421116735,-703.2,0.00044109,120]
[330451878,1719421116770,-500.0,0.00044109,120]
[330451879,1719421116808,-445.68493173,0.00044109,120]
[330451880,1719421116842,-790.2,0.00044109,120]
[330451881,1719421116877,-500.0,0.00044109,120]
[330451882,1719421116911,-257.83410872,0.00044109,120]
[330451883,1719421117207,-500.0,0.00044109,120]
[330451884,1719421117242,-1558.51,0.00044109,120]
[330451885,1719421117275,-693.94,0.00044109,120]
[330451886,1719421117307,-500.0,0.00044109,120]
[330451887,1719421117340,-500.0,0.00044109,120]
[330451888,1719421117373,-500.0,0.00044109,30]
[330451889,1719421117406,-500.0,0.00044109,120]
[330451890,1719421117439,-500.0,0.00044109,120]
[330451891,1719421117473,-345.64502855,0.00044109,120]
[330451892,1719421117507,-500.0,0.00044109,120]
[330451893,1719421117538,-154.50963349,0.00044109,120]
[330451894,1719421117569,-1380.14,0.00044109,120]
[330451895,1719421117599,-500.0,0.00044109,120]
[330451896,1719421117635,-814.09,0.00044109,120]
[330451897,1719421117667,-500.0,0.00044109,120]
[330451898,1719421117700,-1668.05,0.00044109,120]
[330451899,1719421117733,-1598.55,0.00044109,120]
[330451900,1719421117770,-818.43,0.00044109,120]
[330451901,1719421117808,-902.09,0.00044109,120]
[330451902,1719421117845,-500.0,0.00044109,120]
[330451903,1719421117879,-500.0,0.00044109,120]
[330451904,1719421117912,-764.49,0.00044109,120]
[330451905,1719421117948,-527.51,0.00044109,120]
[330451906,1719421117983,-927.0,0.00044113,30]
[330451907,1719421118018,-1000.0,0.00044119,30]
[330451908,1719421118052,-415.83007993,0.00044161,30]
[330451909,1719421118087,-180.3140697,0.00044161,30]
[330451910,1719421118123,-1041.12747453,0.000442,120]
[330451911,1719421118156,-1041.12747453,0.000442,120]
[330451912,1719421118189,-1041.12747453,0.000442,120]
[330451913,1719421118223,-150.0,0.00044201,120]
[330451914,1719421118254,-1000.0,0.00044214,30]
[330451915,1719421118283,-150.0,0.00044227,30]
[330451916,1719421118315,-1000000.0,0.0004425,42]
[330451917,1719421118347,-166.44444444,0.00044274,120]
[330451918,1719421118378,-1000.0,0.00044308,30]
[330451919,1719421118410,-170.09208926,0.0004438,120]
[330451920,1719421118443,-170.59,0.0004438,120]
[330451921,1719421118477,-217.28807109,0.0004438,120]
[330451922,1719421118509,-217.28807109,0.0004438,120]
[330451923,1719421118543,-217.28807109,0.0004438,120]
[330451924,1719421118576,-217.28807109,0.0004438,120]
[330451925,1719421118609,-217.28807109,0.0004438,120]
[330451926,1719421118643,-217.28807109,0.0004438,120]
[330451927,1719421118675,-217.28807109,0.0004438,120]
[330451928,1719421118707,-217.28807109,0.0004438,120]
[330451929,1719421118738,-217.28807109,0.0004438,120]
[330451930,1719421118771,-217.28807109,0.0004438,120]
[330451931,1719421118807,-217.28807109,0.0004438,120]
[330451932,1719421118839,-217.28807109,0.0004438,120]
[330451933,1719421118873,-217.28807109,0.0004438,120]
[330451934,1719421118907,-217.28807109,0.0004438,120]
[330451935,1719421118939,-217.28807109,0.0004438,120]
[330451936,1719421118974,-217.28807109,0.0004438,120]
[330451937,1719421119010,-217.28807109,0.0004438,120]
[330451938,1719421119053,-217.28807109,0.0004438,120]
[330451939,1719421119091,-217.28807109,0.0004438,120]
[330451940,1719421119128,-217.78,0.0004438,120]
[330451941,1719421119165,-869.22728435,0.0004438,120]
[330451942,1719421119202,-869.22728435,0.0004438,120]
[330451943,1719421119239,-869.22728435,0.0004438,120]
[330451944,1719421119275,-869.22728435,0.0004438,120]
[330451945,1719421119313,-869.22728435,0.0004438,120]
[330451946,1719421119351,-869.22728435,0.0004438,120]
[330451947,1719421119390,-869.22728435,0.0004438,120]
[330451948,1719421119429,-869.22728435,0.0004438,120]
[330451949,1719421119469,-869.22728435,0.0004438,120]
[330451950,1719421119508,-869.22728435,0.0004438,120]
[330451951,1719421119550,-869.22728435,0.0004438,120]
[330451952,1719421119589,-869.22728435,0.0004438,120]
[330451953,1719421119631,-869.22728435,0.0004438,120]
[330451954,1719421119670,-869.22728435,0.0004438,120]
[330451955,1719421119709,-869.22728435,0.0004438,120]
[330451956,1719421119753,-869.22728435,0.0004438,120]
[330451957,1719421119794,-869.22728435,0.0004438,120]
[330451958,1719421119833,-869.22728435,0.0004438,120]
[330451959,1719421119874,-869.22728435,0.0004438,120]
[330451960,1719421119914,-869.72,0.0004438,120]
[330451961,1719421119952,-182.8439725,0.0004438,120]
[330451962,1719421119990,-182.8439725,0.0004438,120]
[330451963,1719421120030,-182.8439725,0.0004438,120]
[330451964,1719421120073,-182.8439725,0.0004438,120]
[330451965,1719421120118,-182.8439725,0.0004438,120]
[330451966,1719421120161,-182.8439725,0.0004438,120]
[330451967,1719421120202,-182.8439725,0.0004438,120]
[330451968,1719421120241,-182.8439725,0.0004438,120]
[330451969,1719421120280,-182.8439725,0.0004438,120]
[330451970,1719421120319,-182.8439725,0.0004438,120]
[330451971,1719421120359,-182.8439725,0.0004438,120]
[330451972,1719421120396,-182.8439725,0.0004438,120]
[330451973,1719421120434,-182.8439725,0.0004438,120]
[330451974,1719421120475,-182.8439725,0.0004438,120]
[330451975,1719421120514,-182.8439725,0.0004438,120]
[330451976,1719421120553,-182.8439725,0.0004438,120]
[330451977,1719421120593,-182.8439725,0.0004438,120]
[330451978,1719421120636,-182.8439725,0.0004438,120]
[330451979,1719421120676,-182.8439725,0.0004438,120]
[330451980,1719421120715,-183.34,0.0004438,120]
[330451981,1719421120758,-731.45089001,0.0004438,120]
[330451982,1719421120797,-731.45089001,0.0004438,120]
[330451983,1719421120834,-731.45089001,0.0004438,120]
[330451984,1719421120872,-731.45089001,0.0004438,120]
[330451985,1719421120911,-731.45089001,0.0004438,120]
[330451986,1719421120947,-731.45089001,0.0004438,120]
[330451987,1719421120983,-731.45089001,0.0004438,120]
[330451988,1719421121242,-731.45089001,0.0004438,120]
[330451989,1719421121280,-731.45089001,0.0004438,120]
[330451990,1719421121317,-731.45089001,0.0004438,120]
[330451991,1719421121358,-731.45089001,0.0004438,120]
[330451992,1719421121393,-731.45089001,0.0004438,120]
[330451993,1719421121429,-731.45089001,0.0004438,120]
[330451994,1719421121465,-731.45089001,0.0004438,120]
[330451995,1719421121500,-731.45089001,0.0004438,120]
[330451996,1719421121537,-731.45089001,0.0004438,120]
[330451997,1719421121573,-731.45089001,0.0004438,120]
[330451998,1719421121611,-731.45089001,0.0004438,120]
[330451999,1719421121650,-731.45089001,0.0004438,120]
[330452000,1719421121688,-731.95,0.0004438,120]
[330452001,1719421121730,-243.95836247,0.0004438,120]
[330452002,1719421121768,-243.95836247,0.0004438,120]
[330452003,1719421121808,-243.95836247,0.0004438,120]
[330452004,1719421121844,-243.95836247,0.0004438,120]
[330452005,1719421121881,-243.95836247,0.0004438,120]
[330452006,1719421121919,-243.95836247,0.0004438,120]
[330452007,1719421121959,-243.95836247,0.0004438,120]
[330452008,1719421121996,-243.95836247,0.0004438,120]
[330452009,1719421122035,-243.95836247,0.0004438,120]
[330452010,1719421122073,-243.95836247,0.0004438,120]
[330452011,1719421122110,-243.95836247,0.0004438,120]
[330452012,1719421122148,-243.95836247,0.0004438,120]
[330452013,1719421122186,-243.95836247,0.0004438,120]
[330452014,1719421122224,-243.95836247,0.0004438,120]
[330452015,1719421122262,-243.95836247,0.0004438,120]
[330452016,1719421122299,-243.95836247,0.0004438,120]
[330452017,1719421122337,-243.95836247,0.0004438,120]
[330452018,1719421122375,-243.95836247,0.0004438,120]
[330452019,1719421122415,-243.95836247,0.0004438,120]
[330452020,1719421122454,-244.45,0.0004438,120]
[330452021,1719421122493,-975.90844987,0.0004438,120]
[330452022,1719421122529,-975.90844987,0.0004438,120]
[330452023,1719421122565,-975.90844987,0.0004438,120]
[330452024,1719421122604,-975.90844987,0.0004438,120]
[330452025,1719421122642,-975.90844987,0.0004438,120]
[330452026,1719421122680,-975.90844987,0.0004438,120]
[330452027,1719421122718,-975.90844987,0.0004438,120]
[330452028,1719421122760,-975.90844987,0.0004438,120]
[330452029,1719421122801,-975.90844987,0.0004438,120]
[330452030,1719421122840,-975.90844987,0.0004438,120]
[330452031,1719421122878,-975.90844987,0.0004438,120]
[330452032,1719421122914,-975.90844987,0.0004438,120]
[330452033,1719421122951,-975.90844987,0.0004438,120]
[330452034,1719421122988,-975.90844987,0.0004438,120]
[330452035,1719421123024,-975.90844987,0.0004438,120]
[330452036,1719421123061,-975.90844987,0.0004438,120]
[330452037,1719421123098,-975.90844987,0.0004438,120]
[330452038,1719421123135,-975.90844987,0.0004438,120]
[330452039,1719421123171,-975.90844987,0.0004438,120]
[330452040,1719421123209,-976.4,0.0004438,120]
[330452041,1719421123246,-500.0,0.00044383,120]
[330452042,1719421123283,-500.0,0.00044383,120]
[330452043,1719421123318,-500.0,0.00044383,120]
[330452044,1719421123355,-500.0,0.00044383,120]
[330452045,1719421123391,-500.0,0.00044383,120]
[330452046,1719421123429,-500.0,0.00044383,120]
[330452047,1719421123467,-500.0,0.00044383,120]
[330452048,1719421123503,-500.0,0.00044383,120]
[330452049,1719421123540,-500.0,0.00044383,120]
[330452050,1719421123576,-500.0,0.00044383,120]
[330452051,1719421123613,-500.0,0.00044383,120]
[330452052,1719421123650,-500.0,0.00044383,120]
[330452053,1719421123688,-500.0,0.00044383,120]
[330452054,1719421123727,-500.0,0.00044383,120]
[330452055,1719421123768,-500.0,0.00044383,120]
[330452056,1719421123806,-500.0,0.00044383,120]
[330452057,1719421123843,-500.0,0.00044383,120]
[330452058,1719421123880,-500.0,0.00044383,120]
[330452059,1719421123917,-500.0,0.00044383,120]
[330452060,1719421123954,-500.0,0.00044383,120]
[330452061,1719421123993,-500.0,0.00044383,120]
[330452062,1719421124033,-500.0,0.00044383,120]
[330452063,1719421124072,-500.0,0.00044383,120]
[330452064,1719421124110,-150.02815519,0.00044383,120]
[330452065,1719421124149,-500.0,0.00044383,120]
[330452066,1719421124188,-500.0,0.00044383,120]
[330452067,1719421124226,-500.0,0.00044383,120]
[330452068,1719421124262,-500.0,0.00044383,120]
[330452069,1719421124298,-500.0,0.00044383,120]
[330452070,1719421124336,-500.0,0.00044383,120]
[330452071,1719421124375,-500.0,0.00044383,120]
[330452072,1719421124410,-500.0,0.00044383,120]
[330452073,1719421124446,-200.0,0.00044383,120]
[330452074,1719421124482,-500.0,0.00044383,120]
[330452075,1719421124517,-500.0,0.00044383,120]
[330452076,1719421124554,-500.0,0.00044383,120]
[330452077,1719421124590,-500.0,0.00044383,120]
[330452078,1719421124629,-500.0,0.00044383,120]
[330452079,1719421124668,-500.0,0.00044383,120]
[330452080,1719421124706,-500.0,0.00044383,120]
[330452081,1719421124745,-500.0,0.00044383,120]
[330452082,1719421124783,-489.51501151,0.00044383,120]
[330452083,1719421124819,-500.0,0.00044383,120]
[330452084,1719421124859,-500.0,0.00044383,120]
[330452085,1719421124896,-500.0,0.00044383,120]
[330452086,1719421124932,-500.0,0.00044383,120]
[330452087,1719421124969,-500.0,0.00044383,120]
[330452088,1719421125004,-500.0,0.00044383,120]
[330452089,1719421125040,-500.0,0.00044383,120]
[330452090,1719421125076,-500.0,0.00044383,120]
[330452091,1719421125112,-185.62048369,0.00044383,120]
[330452092,1719421125147,-500.0,0.00044383,120]
[330452093,1719421125399,-500.0,0.00044383,120]
[330452094,1719421125436,-760.7,0.00044383,120]
[330452095,1719421125473,-500.0,0.00044383,120]
[330452096,1719421125512,-500.0,0.00044383,120]
[330452097,1719421125549,-500.0,0.00044383,120]
[330452098,1719421125586,-500.0,0.00044383,120]
[330452099,1719421125624,-1352.54,0.00044383,120]
[330452100,1719421125663,-500.0,0.00044383,120]
[330452101,1719421125700,-500.0,0.00044383,120]
[330452102,1719421125738,-3917.27,0.00044383,120]
[330452103,1719421125777,-500.0,0.00044383,120]
[330452104,1719421125813,-500.0,0.00044383,120]
[330452105,1719421125849,-723.08,0.00044383,120]
[330452106,1719421125884,-249.39257699,0.00044383,120]
[330452107,1719421125919,-835.87,0.00044383,120]
[330452108,1719421125955,-508.11705956,0.00044383,120]
[330452109,1719421125990,-1240.77,0.00044383,120]
[330452110,1719421126024,-500.0,0.00044383,120]
[330452111,1719421126059,-320.33024273,0.00044383,120]
[330452112,1719421126094,-500.0,0.00044383,120]
[330452113,1719421126129,-500.0,0.00044383,120]
[330452114,1719421126164,-500.0,0.00044383,120]
[330452115,1719421126201,-930.25,0.00044383,120]
[330452116,1719421126237,-500.0,0.00044383,120]
[330452117,1719421126275,-500.0,0.00044383,120]
[330452118,1719421126311,-500.0,0.00044383,120]
[330452119,1719421126349,-1174.56,0.00044383,120]
[330452120,1719421126387,-500.0,0.00044383,120]
[330452121,1719421126425,-500.0,0.00044383,120]
[330452122,1719421126464,-500.0,0.00044383,120]
[330452123,1719421126504,-500.0,0.00044383,120]
[330452124,1719421126541,-500.0,0.00044383,120]
[330452125,1719421126581,-959.51,0.00044383,120]
[330452126,1719421126622,-500.0,0.00044383,120]
[330452127,1719421126662,-500.0,0.00044383,120]
[330452128,1719421126700,-500.0,0.00044383,120]
[330452129,1719421126742,-527.12,0.00044383,120]
[330452130,1719421126781,-500.0,0.00044383,120]
[330452131,1719421126819,-500.0,0.00044383,120]
[330452132,1719421126856,-500.0,0.00044383,120]
[330452133,1719421126891,-500.0,0.00044383,120]
[330452134,1719421126927,-555.56096896,0.00044383,120]
[330452135,1719421126963,-588.09,0.00044383,120]
[330452136,1719421126999,-500.0,0.00044383,120]
[330452137,1719421127034,-500.0,0.00044383,120]
[330452138,1719421127070,-908.66,0.00044383,120]
[330452139,1719421127106,-500.0,0.00044383,120]
[330452140,1719421127142,-1130.57,0.00044383,120]
[330452141,1719421127178,-500.0,0.00044383,120]
[330452142,1719421127216,-500.0,0.00044383,120]
[330452143,1719421127255,-1518.34,0.00044383,120]
[330452144,1719421127293,-500.0,0.00044383,120]
[330452145,1719421127330,-500.0,0.00044383,120]
[330452146,1719421127368,-500.0,0.00044383,120]
[330452147,1719421127404,-500.0,0.00044383,120]
[330452148,1719421127441,-500.0,0.00044383,120]
[330452149,1719421127478,-500.0,0.00044383,120]
[330452150,1719421127517,-500.0,0.00044383,120]
[330452151,1719421127558,-500.0,0.00044383,120]
[330452152,1719421127595,-609.7288933,0.00044383,120]
[330452153,1719421127634,-575.64,0.00044383,120]
[330452154,1719421127671,-691.59,0.00044383,120]
[330452155,1719421127707,-713.07,0.00044383,120]
[330452156,1719421127745,-500.0,0.00044383,120]
[330452157,1719421127783,-500.0,0.00044383,120]
[330452158,1719421127820,-522.97779821,0.00044383,120]
[330452159,1719421127859,-554.95,0.00044383,120]
[330452160,1719421127895,-530.6671243,0.00044383,120]
[330452161,1719421127932,-1564.02,0.00044383,120]
[330452162,1719421127970,-635.92,0.00044383,120]
[330452163,1719421128007,-500.0,0.00044383,120]
[330452164,1719421128045,-7752.16,0.00044383,120]
[330452165,1719421128086,-500.0,0.00044383,120]
[330452166,1719421128123,-500.0,0.00044383,120]
[330452167,1719421128163,-500.0,0.00044383,120]
[330452168,1719421128200,-500.0,0.00044383,120]
[330452169,1719421128236,-500.0,0.00044383,120]
[330452170,1719421128274,-467.44,0.00044383,120]
[330452171,1719421128311,-500.0,0.00044383,120]
[330452172,1719421128347,-500.0,0.00044383,120]
[330452173,1719421128385,-500.0,0.00044383,120]
[330452174,1719421128425,-500.0,0.00044383,120]
[330452175,1719421128466,-1463.06,0.00044383,120]
[330452176,1719421128508,-500.0,0.00044383,120]
[330452177,1719421128547,-500.0,0.00044383,120]
[330452178,1719421128586,-769.74,0.00044383,120]
[330452179,1719421128624,-500.0,0.00044383,120]
[330452180,1719421128665,-500.0,0.00044383,120]
[330452181,1719421128705,-500.0,0.00044383,120]
[330452182,1719421128744,-704.96,0.00044383,120]
[330452183,1719421128781,-500.0,0.00044383,120]
[330452184,1719421128818,-524.02216899,0.00044383,120]
[330452185,1719421128856,-637.44,0.00044383,120]
[330452186,1719421128894,-437.90584874,0.00044383,120]
[330452187,1719421128932,-641.54,0.00044383,120]
[330452188,1719421128969,-500.0,0.00044383,120]
[330452189,1719421129007,-774.33,0.00044383,120]
[330452190,1719421129043,-500.0,0.00044383,120]
[330452191,1719421129082,-569.13,0.00044383,120]
[330452192,1719421129120,-786.33,0.00044383,120]
[330452193,1719421129158,-500.0,0.00044383,30]
[330452194,1719421129196,-634.62,0.00044383,120]
[330452195,1719421129234,-500.0,0.00044383,120]
[330452196,1719421129272,-500.0,0.00044383,120]
[330452197,1719421129311,-500.0,0.00044383,120]
[330452198,1719421129585,-589.46,0.00044383,120]
[330452199,1719421129624,-1166.44,0.00044383,120]
[330452200,1719421129663,-500.0,0.00044383,120]
[330452201,1719421129703,-500.0,0.00044383,120]
[330452202,1719421129742,-548.73067492,0.00044383,120]
[330452203,1719421129780,-500.0,0.00044383,120]
[330452204,1719421129820,-500.0,0.00044383,120]
[330452205,1719421129858,-1515.22,0.00044383,120]
[330452206,1719421129896,-500.0,0.00044383,120]
[330452207,1719421129935,-532.62,0.00044383,120]
[330452208,1719421129974,-786.16,0.00044383,120]
[330452209,1719421130012,-500.0,0.00044383,120]
[330452210,1719421130052,-500.0,0.00044383,120]
[330452211,1719421130091,-500.0,0.00044383,120]
[330452212,1719421130131,-1182.5,0.00044383,120]
[330452213,1719421130170,-500.0,0.00044383,120]
[330452214,1719421130209,-3270.15,0.00044383,120]
[330452215,1719421130247,-500.0,0.00044383,120]
[330452216,1719421130286,-500.0,0.00044383,120]
[330452217,1719421130324,-846.45,0.00044383,120]
[330452218,1719421130362,-961.92,0.00044383,120]
[330452219,1719421130400,-500.0,0.00044383,120]
[330452220,1719421130437,-500.0,0.00044383,120]
[330452221,1719421130475,-500.0,0.00044383,120]
[330452222,1719421130514,-500.0,0.00044383,120]
[330452223,1719421130552,-720.72,0.00044383,120]
[330452224,1719421130590,-436.73552279,0.00044383,120]
[330452225,1719421130630,-500.0,0.00044383,120]
[330452226,1719421130670,-1195.34,0.00044383,120]
[330452227,1719421130709,-523.07360108,0.00044383,120]
[330452228,1719421130749,-500.0,0.00044383,120]
[330452229,1719421130789,-1320.06,0.00044383,120]
[330452230,1719421130828,-500.0,0.00044383,120]
[330452231,1719421130867,-500.0,0.00044383,120]
[330452232,1719421130906,-500.0,0.00044383,120]
[330452233,1719421130943,-500.0,0.00044383,120]
[330452234,1719421130982,-500.0,0.00044383,120]
[330452235,1719421131019,-1103.69,0.00044383,120]
[330452236,1719421131057,-500.0,0.00044383,120]
[330452237,1719421131093,-622.53,0.00044383,120]
[330452238,1719421131132,-1853.82,0.00044383,120]
[330452239,1719421131172,-500.0,0.00044383,120]
[330452240,1719421131212,-500.0,0.00044383,120]
[330452241,1719421131250,-500.0,0.00044383,120]
[330452242,1719421131288,-500.0,0.00044383,120]
[330452243,1719421131326,-500.0,0.00044383,120]
[330452244,1719421131366,-535.17,0.00044383,120]
[330452245,1719421131404,-500.0,0.00044383,120]
[330452246,1719421131440,-500.0,0.00044383,120]
[330452247,1719421131479,-500.0,0.00044383,120]
[330452248,1719421131519,-905.03,0.00044383,120]
[330452249,1719421131558,-500.0,0.00044383,120]
[330452250,1719421131595,-1476.22,0.00044383,120]
[330452251,1719421131636,-500.0,0.00044383,120]
[330452252,1719421131674,-500.0,0.00044383,120]
[330452253,1719421131711,-500.0,0.00044383,120]
[330452254,1719421131753,-500.0,0.00044383,120]
[330452255,1719421131792,-500.0,0.00044383,120]
[330452256,1719421131831,-500.0,0.00044383,120]
[330452257,1719421131869,-500.0,0.00044383,120]
[330452258,1719421131906,-512.56348819,0.00044383,120]
[330452259,1719421131944,-806.53,0.00044383,120]
[330452260,1719421131982,-500.0,0.00044383,120]
[330452261,1719421132020,-561.18,0.00044383,120]
[330452262,1719421132057,-500.0,0.00044383,120]
[330452263,1719421132094,-596.85,0.00044383,120]
[330452264,1719421132131,-500.0,0.00044383,120]
[330452265,1719421132167,-511.59,0.00044383,120]
[330452266,1719421132206,-611.18,0.00044383,120]
[330452267,1719421132242,-500.0,0.00044383,120]
[330452268,1719421132281,-507.17967988,0.00044383,120]
[330452269,1719421132317,-500.0,0.00044383,120]
[330452270,1719421132353,-500.0,0.00044383,120]
[330452271,1719421132391,-500.0,0.00044383,120]
[330452272,1719421132430,-500.0,0.00044383,120]
[330452273,1719421132468,-500.0,0.00044383,120]
[330452274,1719421132505,-636.58,0.00044383,120]
[330452275,1719421132542,-994.35,0.00044383,120]
[330452276,1719421132580,-1625.93,0.00044383,120]
[330452277,1719421132618,-846.81,0.00044383,120]
[330452278,1719421132656,-500.0,0.00044383,120]
[330452279,1719421132694,-3349.15,0.00044383,120]
[330452280,1719421132737,-500.0,0.00044383,120]
[330452281,1719421132778,-514.73,0.00044383,120]
[330452282,1719421132818,-1298.88,0.00044383,120]
[330452283,1719421132856,-500.0,0.00044383,120]
[330452284,1719421132894,-500.0,0.00044383,120]
[330452285,1719421132931,-500.0,0.00044383,120]
[330452286,1719421132971,-1256.63,0.00044383,120]
[330452287,1719421133010,-500.0,0.00044383,120]
[330452288,1719421133048,-503.4459217,0.00044383,120]
[330452289,1719421133086,-1464.7,0.00044383,120]
[330452290,1719421133123,-1004.81,0.00044383,120]
[330452291,1719421133159,-500.0,0.00044383,120]
[330452292,1719421133196,-500.0,0.00044383,120]
[330452293,1719421133234,-500.0,0.00044383,120]
[330452294,1719421133271,-500.0,0.00044383,120]
[330452295,1719421133308,-500.0,0.00044383,120]
[330452296,1719421133345,-649.93334971,0.00044383,120]
[330452297,1719421133381,-614.32,0.00044383,120]
[330452298,1719421133418,-500.0,0.00044383,120]
[330452299,1719421133457,-500.0,0.00044383,120]
[330452300,1719421133492,-500.0,0.00044383,120]
[330452301,1719421133528,-500.0,0.00044383,120]
[330452302,1719421133565,-563.43,0.00044383,120]
[330452303,1719421133902,-1307.72,0.00044383,120]
[330452304,1719421133938,-500.0,0.00044383,120]
[330452305,1719421133975,-500.0,0.00044383,120]
[330452306,1719421134013,-500.0,0.00044383,120]
[330452307,1719421134052,-500.0,0.00044383,120]
[330452308,1719421134092,-1216.1,0.00044383,120]
[330452309,1719421134130,-1998.63,0.00044383,120]
[330452310,1719421134167,-1473.31,0.00044383,120]
[330452311,1719421134206,-387.59528532,0.00044383,120]
[330452312,1719421134244,-500.0,0.00044383,120]
[330452313,1719421134287,-393.62972048,0.00044383,120]
[330452314,1719421134324,-501.39,0.00044383,120]
[330452315,1719421134362,-500.0,0.00044383,120]
[330452316,1719421134400,-500.0,0.00044383,120]
[330452317,1719421134438,-969.76,0.00044383,120]
[330452318,1719421134476,-1008.87,0.00044383,120]
[330452319,1719421134515,-515.87491855,0.00044383,120]
[330452320,1719421134553,-1521.98,0.00044383,120]
[330452321,1719421134592,-500.0,0.00044383,120]
[330452322,1719421134632,-533.32020028,0.00044383,120]
[330452323,1719421134672,-763.87,0.00044383,120]
[330452324,1719421134710,-1189.62,0.00044383,120]
[330452325,1719421134751,-500.0,0.00044383,120]
[330452326,1719421134791,-500.0,0.00044383,120]
[330452327,1719421134830,-500.0,0.00044383,120]
[330452328,1719421134870,-896.53,0.00044383,120]
[330452329,1719421134909,-500.0,0.00044383,120]
[330452330,1719421134948,-500.0,0.00044383,120]
[330452331,1719421134987,-993.99,0.00044383,120]
[330452332,1719421135027,-828.85,0.00044383,120]
[330452333,1719421135066,-500.0,0.00044383,120]
[330452334,1719421135106,-500.0,0.00044383,120]
[330452335,1719421135145,-500.0,0.00044383,120]
[330452336,1719421135184,-500.0,0.00044383,120]
[330452337,1719421135226,-532.6,0.00044383,120]
[330452338,1719421135266,-500.0,0.00044383,120]
[330452339,1719421135304,-500.0,0.00044383,120]
[330452340,1719421135342,-500.0,0.00044383,120]
[330452341,1719421135382,-797.83,0.00044383,120]
[330452342,1719421135422,-564.44,0.00044383,120]
[330452343,1719421135462,-692.81,0.00044383,120]
[330452344,1719421135501,-500.0,0.00044383,120]
[330452345,1719421135540,-2291.52,0.00044383,120]
[330452346,1719421135580,-1581.05,0.00044383,120]
[330452347,1719421135620,-515.33449222,0.00044383,120]
[330452348,1719421135659,-500.0,0.00044383,120]
[330452349,1719421135698,-506.09350883,0.00044383,120]
[330452350,1719421135739,-500.0,0.00044383,120]
[330452351,1719421135776,-737.06,0.00044383,120]